bitfinex/quotes_SOLUSD_20250228
["timestamp","ask_amount","ask_price","bid_price","bid_amount"]
[1740734244456,82.8,132.07,132.04,7.76]
[1740734244888,90.3717,132.07,132.04,7.76]
[1740734245087,82.8,132.07,132.04,7.76]
[1740734246359,82.8,132.07,132.04,15.3332]
[1740734246555,82.8,132.07,132.04,7.76]
[1740734247674,82.8,132.06,132.04,7.76]
[1740734247858,82.8,132.05,132.03,127.68]
[1740734248056,82.8,132.04,132.03,7.84]
[1740734248894,90.3734,132.04,132.03,7.84]
[1740734249263,7.5734,132.04,132.03,7.84]
[1740734249583,7.5734,132.04,132.03,7.903]
[1740734249902,7.5734,132.04,132.03,0.063]
[1740734250690,26.36521043,132.04,132.03,0.063]
[1740734251175,26.22304886,132.04,132.03,0.063]
[1740734253764,26.36521043,132.04,132.03,0.063]
[1740734254185,30.36521043,132.04,132.03,0.063]
[1740734254396,0.14216157,132.01,131.95,127.683]
[1740734254561,18.79181043,131.99,131.98,7.94]
[1740734254766,20.79181043,131.99,131.98,7.94]
[1740734254966,26.36811043,131.99,131.98,7.94]
[1740734255567,26.22594886,131.99,131.98,7.94]
[1740734255772,7.5746,132.02,131.98,7.94]
[1740734255968,18.79181043,132.01,131.98,7.94]
[1740734256777,7.5746,132.02,131.98,7.94]
[1740734256980,8.4212,132.11,131.98,15.5168]
[1740734257165,13.9908,132.11,132.01,20.0]
[1740734257981,18.64964886,132.1,132.01,20.0]
[1740734258176,13.9908,132.11,132.01,20.0]
[1740734258369,2.0,132.1,131.98,34.459]
[1740734258569,18.79181043,132.09,131.98,34.459]
[1740734258795,20.79181043,132.09,131.98,34.459]
[1740734258964,7.71276157,132.09,131.98,34.459]
[1740734259168,7.5706,132.09,131.99,0.14216157]
[1740734259370,7.5701,132.1,131.99,0.14216157]
[1740734259598,0.03,132.12,132.03,6.3778]
[1740734259877,0.03,132.12,132.04,8.10216157]
[1740734260080,0.03,132.12,132.04,10.10216157]
[1740734260372,82.8,132.11,132.04,8.10216157]
[1740734260570,82.8,132.11,132.04,10.10216157]
[1740734260796,82.8,132.11,132.04,12.10216157]
[1740734260990,82.8,132.11,132.08,20.0]
[1740734261193,82.8,132.11,132.09,9.5056]
[1740734262190,82.8,132.11,132.09,7.96]
[1740734262380,82.8,132.1,132.09,7.96]
[1740734264585,18.64964886,132.1,132.09,7.96]
[1740734264986,18.67964886,132.12,132.09,7.96]
[1740734265197,7.5989,132.12,132.09,7.96]
[1740734265578,0.03,132.12,132.09,7.96]
[1740734266588,0.03,132.12,132.09,9.4602]
[1740734266986,0.03,132.12,132.09,7.96]
[1740734269704,0.03,132.12,132.03,6.4408]
[1740734269905,18.79181043,132.1,132.04,7.98]
[1740734271003,18.64964886,132.1,132.04,7.98]
[1740734271185,18.64964886,132.1,132.04,15.5534]
[1740734271381,82.8,132.09,132.04,15.5534]
[1740734271590,82.8,132.08,132.04,15.5534]
[1740734272100,82.8,132.11,132.06,6.5351]
[1740734272503,82.8,132.11,132.07,1.5762]
[1740734273111,82.8,132.11,132.08,7.5711]
[1740734273405,82.8,132.11,132.09,7.96]
[1740734273982,82.8,132.1,132.09,7.96]
[1740734275503,0.03,132.12,132.1,7.57]
[1740734279210,0.03,132.12,132.09,7.96]
[1740734279404,0.03,132.12,132.09,15.5305]
[1740734279608,82.83,132.12,132.09,7.96]
[1740734279819,82.8,132.11,132.09,7.96]
[1740734280112,82.8,132.11,132.07,9.1478]
[1740734280408,0.03,132.12,132.07,1.5762]
[1740734280625,0.03,132.12,132.08,7.94]
[1740734281108,0.03,132.12,132.09,7.94]
[1740734281413,0.03,132.12,132.04,9.0772]
[1740734281600,101.44964886,132.11,132.05,7.94]
[1740734281801,82.8,132.11,132.05,7.94]
[1740734282692,101.44964886,132.1,132.05,7.94]
[1740734282892,82.8,132.09,132.03,0.063]
[1740734283092,82.8,132.08,132.03,0.063]
[1740734283319,101.44964886,132.07,132.03,0.063]
[1740734283695,89.39426157,132.06,132.03,0.063]
[1740734284017,18.64964886,132.04,132.03,0.063]
[1740734284723,0.14216157,132.04,132.03,0.063]
[1740734285095,7.71556157,132.04,132.03,0.063]
[1740734286816,14.011,132.09,132.03,0.063]
[1740734287023,18.64964886,132.08,132.03,0.063]
[1740734287392,18.64964886,132.06,132.03,0.063]
[1740734289627,45.29281043,132.07,132.03,0.063]
[1740734290511,82.8,132.06,132.03,0.063]
[1740734290702,18.79181043,132.05,132.03,0.063]
[1740734291209,18.64964886,132.05,132.03,0.063]
[1740734291598,26.22304886,132.05,132.03,0.063]
[1740734292021,82.8,132.04,132.03,0.063]
[1740734292316,101.59181043,132.04,132.03,0.063]
[1740734293309,18.79181043,132.03,131.95,0.063]
[1740734293619,18.64964886,132.01,131.96,7.94]
[1740734293798,82.8,132.0,131.96,15.5179]
[1740734296015,82.8,132.04,131.96,34.463]
[1740734296216,25.3982,132.09,131.96,34.463]
[1740734296217,82.8,132.03,131.96,34.463]
[1740734296529,82.8,132.03,131.98,6.0852]
[1740734296702,82.8,132.05,132.01,20.0]
[1740734296899,82.8,132.08,132.03,1.5024]
[1740734297099,82.8,132.07,132.03,1.5024]
[1740734299429,82.8,132.07,132.03,9.0763]
[1740734300201,82.8,132.07,132.03,9.1393]
[1740734301225,82.8,132.07,132.03,1.5654]
[1740734301826,82.8,132.06,132.03,1.5654]
[1740734302329,82.8,132.06,132.04,7.94]
[1740734305136,82.8,132.08,132.04,15.5133]
[1740734305658,82.8,132.08,132.05,7.9357]
[1740734305939,0.03,132.09,132.08,20.0]
[1740734306137,0.03,132.09,132.08,19.62]
[1740734307506,0.03,132.09,132.08,27.1911]
[1740734308140,0.0001,132.09,132.08,27.33326157]
[1740734310227,0.0001,132.09,132.08,27.1911]
[1740734310421,0.0001,132.09,132.08,7.5711]
[1740734310925,0.0001,132.09,132.06,81.6]
[1740734311128,0.0001,132.09,132.06,7.5723]
[1740734311555,82.8,132.08,132.05,1.5838]
[1740734311848,82.8,132.07,132.04,135.58]
[1740734312048,82.8,132.06,132.04,135.58]
[1740734312630,82.8,132.05,132.04,135.58]
[1740734312839,0.0001,132.09,132.04,135.58]
[1740734313059,18.64964886,132.07,132.04,127.64]
[1740734313344,101.44964886,132.06,132.05,7.86]
[1740734313553,26.22194886,132.06,132.05,7.86]
[1740734314656,0.0001,132.09,132.05,7.86]
[1740734314840,7.5712,132.08,132.05,7.86]
[1740734315045,18.64964886,132.07,132.05,7.86]
[1740734316053,7.5711,132.08,132.05,7.86]
[1740734316656,18.79181043,132.07,132.04,127.64]
[1740734316840,18.79181043,132.07,132.05,7.9]
[1740734317936,7.5723,132.06,132.05,7.9]
[1740734318337,7.5723,132.06,132.03,0.063]
[1740734318533,0.14216157,132.05,132.03,0.063]
[1740734318736,18.79181043,132.05,132.03,0.063]
[1740734319455,0.14216157,132.02,131.99,7.88]
[1740734320063,18.64964886,132.0,131.99,7.88]
[1740734320358,0.14216157,131.99,131.97,7.88]
[1740734322042,109.16871043,131.98,131.97,7.88]
[1740734322356,109.16871043,131.98,131.95,0.063]
[1740734322539,109.16871043,131.98,131.95,7.923]
[1740734322955,18.79181043,131.97,131.95,7.923]
[1740734323254,101.59181043,131.96,131.95,0.063]
[1740734323468,82.81616157,131.94,131.93,7.923]
[1740734323658,101.46581043,131.94,131.93,7.923]
[1740734324164,109.04501043,131.94,131.93,7.923]
[1740734325759,109.04501043,131.94,131.93,0.063]
[1740734326549,26.37101043,131.94,131.93,0.063]
[1740734326753,26.22884886,131.94,131.93,0.063]
[1740734327131,18.64964886,131.94,131.93,0.063]
[1740734327542,26.22884886,131.94,131.93,0.063]
[1740734327742,18.64964886,131.94,131.93,0.063]
[1740734327947,26.22884886,131.94,131.93,0.063]
[1740734328131,18.64964886,131.94,131.93,0.063]
[1740734328747,26.22884886,131.94,131.93,0.063]
[1740734329157,26.37101043,131.94,131.93,0.063]
[1740734333069,26.37101043,131.94,131.93,0.0001]
[1740734333070,28.37101043,131.94,131.93,0.0001]
[1740734333240,158.39181043,131.93,131.92,0.0001]
[1740734333445,22.79181043,131.93,131.92,0.0001]
[1740734333952,20.79181043,131.93,131.92,0.0001]
[1740734334466,28.37151043,131.93,131.92,0.0001]
[1740734336755,26.22934886,131.93,131.92,0.0001]
[1740734337155,18.64964886,131.93,131.92,0.0001]
[1740734338346,18.79181043,131.93,131.92,0.0001]
[1740734338873,7.72186157,131.93,131.92,0.0001]
[1740734339867,7.75146157,131.94,131.92,0.0001]
[1740734340054,0.03,131.94,131.92,0.0001]
[1740734342975,18.79181043,131.93,131.92,0.0001]
[1740734344084,7.72186157,131.93,131.92,0.0001]
[1740734345571,26.37151043,131.93,131.92,0.0001]
[1740734345969,28.37151043,131.93,131.92,0.0001]
[1740734346365,30.37151043,131.93,131.92,0.0001]
[1740734346870,26.37151043,131.93,131.92,0.0001]
[1740734347382,26.22934886,131.93,131.92,0.0001]
[1740734347557,18.64964886,131.93,131.92,0.0001]
[1740734347881,0.03,131.94,131.92,0.0001]
[1740734348381,0.03,131.93,131.92,0.0001]
[1740734348958,0.17216157,131.93,131.92,0.0001]
[1740734349390,22.82181043,131.93,131.92,0.0001]
[1740734349884,38.79181043,131.9,131.89,0.063]
[1740734350067,38.79181043,131.9,131.89,0.0001]
[1740734350271,42.79181043,131.9,131.89,0.0001]
[1740734350458,50.37331043,131.9,131.89,0.0001]
[1740734353590,42.79181043,131.86,131.85,0.063]
[1740734354285,49.11751043,131.86,131.85,0.063]
[1740734354496,56.70131043,131.86,131.85,0.063]
[1740734355591,54.70131043,131.86,131.85,0.063]
[1740734356000,56.70131043,131.86,131.85,0.063]
[1740734356493,31.72766157,131.83,131.82,0.063]
[1740734356798,50.37731043,131.83,131.82,0.063]
[1740734357094,50.37731043,131.83,131.82,0.0001]
[1740734357277,42.79181043,131.8,131.79,0.063]
[1740734358498,42.79181043,131.8,131.79,0.0001]
[1740734358793,20.0,131.76,131.74,0.063]
[1740734358997,18.79181043,131.75,131.74,0.063]
[1740734359372,0.14216157,131.75,131.74,0.063]
[1740734360884,7.73226157,131.75,131.74,0.063]
[1740734361898,9.73226157,131.75,131.74,0.063]
[1740734362287,7.73226157,131.75,131.74,0.063]
[1740734362483,9.73226157,131.75,131.74,0.063]
[1740734362880,11.73226157,131.75,131.74,0.063]
[1740734363402,7.73226157,131.75,131.74,0.063]
[1740734363881,9.73226157,131.75,131.74,0.063]
[1740734364202,11.73226157,131.75,131.74,0.063]
[1740734364504,9.73226157,131.75,131.74,0.063]
[1740734365784,11.73226157,131.75,131.74,0.063]
[1740734365989,9.73226157,131.75,131.74,0.063]
[1740734366303,7.5889,131.77,131.74,0.063]
[1740734366692,18.79181043,131.76,131.74,0.063]
[1740734367097,18.64964886,131.76,131.74,0.063]
[1740734367301,0.14216157,131.75,131.74,0.063]
[1740734369102,26.38191043,131.75,131.74,0.063]
[1740734370006,18.64964886,131.74,131.71,7.586]
[1740734370380,18.64964886,131.72,131.71,7.586]
[1740734370809,38.79181043,131.72,131.71,7.586]
[1740734371018,46.38361043,131.72,131.71,7.586]
[1740734371511,26.38361043,131.72,131.71,7.586]
[1740734372207,18.79181043,131.71,131.67,8.0607]
[1740734372419,18.79181043,131.71,131.68,7.78]
[1740734373241,7.593,131.7,131.68,7.78]
[1740734373514,18.64964886,131.69,131.68,7.78]
[1740734373811,0.14216157,131.73,131.68,7.78]
[1740734374108,18.79181043,131.73,131.68,7.78]
[1740734375509,82.8,131.7,131.68,15.3737]
[1740734377608,79.4668,131.7,131.68,15.3737]
[1740734377998,79.4668,131.75,131.68,34.3591]
[1740734378200,79.4668,131.74,131.71,20.0]
[1740734378691,79.4668,131.78,131.72,15.2316]
[1740734378905,79.4668,131.77,131.73,7.78]
[1740734379089,79.4668,131.81,131.73,7.78]
[1740734379294,98.11644886,131.8,131.73,7.78]
[1740734379492,79.4668,131.79,131.74,0.14216157]
[1740734379712,79.4668,131.79,131.73,7.78]
[1740734379900,0.03,131.82,131.73,7.78]
[1740734379901,79.4668,131.78,131.73,7.78]
[1740734380101,79.4668,131.77,131.73,7.78]
[1740734381112,98.11644886,131.76,131.73,7.78]
[1740734381311,98.11644886,131.76,131.72,7.6398]
[1740734381514,79.4668,131.75,131.73,7.76]
[1740734381694,79.4668,131.74,131.73,7.76]
[1740734382295,98.11644886,131.74,131.73,7.76]
[1740734382516,18.64964886,131.74,131.73,7.76]
[1740734382818,26.38251043,131.74,131.73,7.76]
[1740734383118,18.64964886,131.74,131.73,7.76]
[1740734384022,26.24034886,131.74,131.73,7.76]
[1740734385521,26.38251043,131.74,131.72,7.76]
[1740734385730,18.79181043,131.73,131.72,7.76]
[1740734386223,0.14216157,131.73,131.72,7.76]
[1740734386818,7.5912,131.73,131.72,7.76]
[1740734386998,0.17216157,131.74,131.72,7.76]
[1740734387199,7.76306157,131.74,131.72,7.76]
[1740734387395,7.6209,131.74,131.72,7.76]
[1740734390307,0.14216157,131.73,131.72,7.76]
[1740734390818,101.59181043,131.73,131.72,7.76]
[1740734391026,18.79181043,131.73,131.72,7.76]
[1740734392513,26.38301043,131.73,131.72,7.76]
[1740734393020,30.16754503,131.73,131.72,7.76]
[1740734394625,30.16754503,131.73,131.68,0.063]
[1740734394830,20.0,131.7,131.69,7.78]
[1740734396431,18.64964886,131.69,131.68,0.063]
[1740734396610,18.64964886,131.69,131.68,7.843]
[1740734397808,26.24314886,131.69,131.68,7.843]
[1740734398324,18.64964886,131.69,131.68,7.843]
[1740734398527,3.92669617,131.73,131.68,7.843]
[1740734398731,82.8,131.69,131.68,7.843]
[1740734398917,18.64964886,131.69,131.68,7.843]
[1740734399750,2.63451654,131.77,131.68,7.843]
[1740734400226,20.0,131.73,131.68,15.437]
[1740734400414,18.64964886,131.76,131.68,15.437]
[1740734400816,20.0,131.73,131.68,15.437]
[1740734401017,9.1815,131.77,131.68,15.437]
[1740734401340,7.5891,131.77,131.69,1.601]
[1740734401534,18.64964886,131.76,131.69,1.601]
[1740734401734,18.64964886,131.77,131.69,1.601]
[1740734401929,0.14216157,131.76,131.69,1.601]
[1740734402342,0.14216157,131.76,131.68,7.843]
[1740734402634,18.79181043,131.73,131.68,7.843]
[1740734403741,0.14216157,131.71,131.68,7.843]
[1740734403921,7.5929,131.71,131.68,7.843]
[1740734404322,18.64964886,131.7,131.68,7.843]
[1740734404514,82.8,131.69,131.68,7.843]
[1740734404724,101.44964886,131.69,131.68,7.843]
[1740734406244,82.8,131.69,131.68,7.843]
[1740734406447,82.8,131.69,131.68,15.4371]
[1740734407022,82.8,131.69,131.68,7.843]
[1740734407245,82.8,131.69,131.68,15.4371]
[1740734407437,82.8,131.74,131.68,15.4371]
[1740734407646,8.507,131.8,131.68,15.4371]
[1740734407647,82.8,131.73,131.68,17.4371]
[1740734407948,82.8,131.73,131.68,15.4371]
[1740734409222,90.3913,131.73,131.68,15.4371]
[1740734409635,90.3913,131.73,131.68,7.843]
[1740734409849,82.8,131.72,131.68,7.843]
[1740734410853,90.3919,131.72,131.68,7.843]
[1740734411448,82.8,131.72,131.68,15.4371]
[1740734412738,82.8,131.71,131.68,15.4371]
[1740734413651,82.8,131.71,131.68,7.843]
[1740734414831,82.8,131.71,131.68,15.4371]
[1740734416554,82.8,131.71,131.68,17.4371]
[1740734417157,82.8,131.71,131.68,36.4225]
[1740734417754,0.03,131.74,131.68,0.063]
[1740734417755,82.8,131.7,131.68,0.063]
[1740734417949,82.8,131.7,131.68,7.823]
[1740734418834,90.393,131.7,131.68,7.823]
[1740734419556,109.04264886,131.7,131.69,7.76]
[1740734419952,109.04264886,131.7,131.68,0.063]
[1740734420132,109.04264886,131.7,131.69,7.76]
[1740734421337,82.8,131.7,131.69,7.76]
[1740734422766,7.592,131.72,131.69,7.76]
[1740734423067,18.64964886,131.71,131.69,7.76]
[1740734423249,101.44964886,131.7,131.69,7.76]
[1740734423561,109.04264886,131.7,131.69,7.76]
[1740734425350,26.24264886,131.7,131.69,7.76]
[1740734426962,6.0569,131.74,131.69,7.76]
[1740734427150,90.3912,131.73,131.69,7.76]
[1740734427462,7.5924,131.71,131.69,7.76]
[1740734427660,82.8,131.7,131.69,7.76]
[1740734428567,82.8,131.7,131.69,23.642]
[1740734428752,82.8,131.7,131.69,16.0485]
[1740734428941,82.8,131.7,131.69,23.642]
[1740734429562,7.5914,131.73,131.69,16.0485]
[1740734429768,7.5914,131.73,131.69,14.4143]
[1740734429969,7.5914,131.73,131.69,7.76]
[1740734430179,18.64964886,131.72,131.69,7.76]
[1740734431171,0.14216157,131.71,131.69,7.76]
[1740734431470,20.0,131.7,131.69,7.76]
[1740734431690,46.24264886,131.7,131.68,0.063]
[1740734431844,18.79181043,131.69,131.68,0.0001]
[1740734432552,20.79181043,131.69,131.68,0.0001]
[1740734433058,18.79181043,131.65,131.6,0.063]
[1740734433247,18.79181043,131.61,131.6,0.063]
[1740734433652,26.39001043,131.61,131.6,0.063]
[1740734434170,18.79181043,131.61,131.6,0.063]
[1740734435282,7.73906157,131.64,131.6,0.063]
[1740734435573,38.79181043,131.61,131.6,0.063]
[1740734435803,46.39001043,131.61,131.6,0.063]
[1740734437060,38.64964886,131.61,131.6,0.063]
[1740734438785,46.24784886,131.61,131.6,0.063]
[1740734439161,46.39001043,131.61,131.6,0.063]
[1740734439676,46.24784886,131.61,131.6,0.063]
[1740734440187,46.39001043,131.61,131.6,0.063]
[1740734441971,38.64964886,131.61,131.6,0.063]
[1740734442277,7.5947,131.67,131.6,0.063]
[1740734442473,7.5947,131.67,131.6,6.7217]
[1740734443290,20.0,131.67,131.6,6.7217]
[1740734443585,0.03,131.68,131.61,0.14216157]
[1740734443763,18.64964886,131.67,131.61,7.5977]
[1740734443964,18.64964886,131.67,131.6,6.7217]
[1740734444286,20.0,131.65,131.6,6.7217]
[1740734444490,18.64964886,131.64,131.6,6.7217]
[1740734444691,0.14216157,131.63,131.6,0.063]
[1740734445768,7.5976,131.62,131.6,0.063]
[1740734446100,20.0,131.63,131.6,0.063]
[1740734446289,38.64964886,131.62,131.6,0.063]
[1740734447401,20.0,131.62,131.6,0.063]
[1740734447577,7.73796157,131.65,131.6,0.063]
[1740734447766,18.64964886,131.64,131.6,0.063]
[1740734448486,82.8,131.63,131.6,0.063]
[1740734449879,7.5976,131.62,131.6,0.063]
[1740734450886,82.8,131.61,131.6,0.063]
[1740734451088,26.24724886,131.62,131.6,7.823]
[1740734451392,82.8,131.61,131.6,7.823]
[1740734452198,90.3982,131.61,131.6,7.823]
[1740734453281,90.3982,131.61,131.6,0.063]
[1740734455902,28.39001043,131.61,131.6,0.0001]
[1740734456385,18.79181043,131.6,131.57,0.0001]
[1740734456704,38.64964886,131.58,131.57,0.0001]
[1740734457305,18.79181043,131.57,131.55,0.063]
[1740734458582,26.25064886,131.56,131.55,0.063]
[1740734459389,18.9984,131.59,131.55,0.063]
[1740734459608,7.5999,131.58,131.55,0.063]
[1740734459811,7.5982,131.61,131.55,0.063]
[1740734460109,18.79181043,131.6,131.55,0.063]
[1740734460496,7.5993,131.59,131.55,0.063]
[1740734460819,18.64964886,131.58,131.55,0.063]
[1740734462512,38.64964886,131.56,131.55,0.063]
[1740734462676,46.25064886,131.56,131.55,0.063]
[1740734463183,46.39281043,131.56,131.55,0.063]
[1740734464286,46.39281043,131.56,131.55,0.0001]
[1740734464686,18.79181043,131.55,131.53,0.0001]
[1740734466105,26.39401043,131.54,131.53,0.0001]
[1740734467714,28.39401043,131.54,131.53,0.0001]
[1740734467915,28.39401043,131.54,131.5,0.063]
[1740734467916,46.25354886,131.51,131.5,0.063]
[1740734468618,20.14216157,131.47,131.4,134.5043]
[1740734468791,0.14216157,131.44,131.4,6.3643]
[1740734469110,0.14216157,131.44,131.39,1.5327]
[1740734469316,0.14216157,131.44,131.39,7.78]
[1740734470018,18.79181043,131.42,131.37,6.2719]
[1740734470204,18.64964886,131.39,131.35,1.6585]
[1740734470394,18.79181043,131.39,131.34,6.6154]
[1740734470595,18.79181043,131.39,131.34,14.3954]
[1740734470832,18.64964886,131.39,131.34,14.3954]
[1740734471322,0.14216157,131.42,131.34,14.3954]
[1740734471690,18.64964886,131.39,131.34,14.3954]
[1740734472119,7.75136157,131.42,131.34,24.0092]
[1740734472298,26.40101043,131.42,131.34,14.3954]
[1740734472619,82.8,131.38,131.34,14.3954]
[1740734472814,82.8,131.37,131.34,14.3954]
[1740734473515,82.8,131.36,131.34,14.3954]
[1740734474091,82.8,131.36,131.34,6.6154]
[1740734474289,82.8,131.36,131.34,14.3954]
[1740734475316,82.8,131.35,131.34,14.3954]
[1740734475491,18.64964886,131.37,131.34,14.3954]
[1740734475696,18.64964886,131.37,131.34,7.78]
[1740734475896,22.3906227,131.39,131.34,7.78]
[1740734476113,26.26114886,131.38,131.34,7.78]
[1740734477695,7.6091,131.42,131.34,15.3936]
[1740734477914,7.6091,131.42,131.34,7.78]
[1740734478118,20.0,131.39,131.34,7.78]
[1740734478299,18.64964886,131.41,131.34,15.3936]
[1740734478500,7.6074,131.45,131.34,15.3936]
[1740734478805,0.14216157,131.42,131.34,7.78]
[1740734479316,7.6097,131.41,131.34,15.3937]
[1740734479521,7.6097,131.41,131.34,7.78]
[1740734479823,7.6097,131.41,131.34,15.3936]
[1740734480119,26.25834886,131.43,131.34,15.3936]
[1740734480294,82.8,131.4,131.34,15.3936]
[1740734480720,82.8,131.39,131.34,15.3936]
[1740734481022,82.8,131.38,131.34,15.3936]
[1740734481219,82.8,131.38,131.34,34.4281]
[1740734482424,82.8,131.38,131.34,15.3936]
[1740734484130,82.8,131.37,131.34,15.3936]
[1740734485848,82.8,131.36,131.34,15.4566]
[1740734486024,82.8,131.35,131.34,15.4566]
[1740734486225,7.6098,131.41,131.34,7.6741]
[1740734486401,82.8,131.4,131.34,7.6741]
[1740734487728,18.64964886,131.39,131.34,7.6741]
[1740734488101,18.64964886,131.39,131.34,0.063]
[1740734488328,82.8,131.38,131.35,7.78]
[1740734488517,82.8,131.37,131.35,7.78]
[1740734489602,82.8,131.36,131.35,7.78]
[1740734491829,20.0,131.37,131.35,7.78]
[1740734492031,82.8,131.36,131.35,7.78]
[1740734492234,3.81679201,131.38,131.35,7.78]
[1740734492438,38.98330355,131.43,131.35,11.78]
[1740734492737,20.0,131.39,131.35,11.78]
[1740734492898,82.8,131.38,131.35,7.78]
[1740734493102,20.0,131.36,131.35,7.78]
[1740734493527,20.0,131.37,131.35,7.78]
[1740734495327,20.0,131.37,131.35,11.78]
[1740734495507,3.73696518,131.39,131.37,12.1444]
[1740734495704,0.03,131.46,131.38,4.14216157]
[1740734495904,20.0,131.44,131.38,4.14216157]
[1740734496128,20.0,131.44,131.37,10.1444]
[1740734496346,20.0,131.43,131.37,12.1444]
[1740734496630,3.79625905,131.41,131.37,12.1444]
[1740734496830,3.79625905,131.41,131.38,0.14216157]
[1740734497006,3.79625905,131.41,131.38,4.14216157]
[1740734497206,3.79625905,131.41,131.38,2.14216157]
[1740734497420,3.79625905,131.41,131.38,4.14216157]
[1740734497619,3.79625905,131.41,131.38,2.0]
[1740734498025,3.82625905,131.41,131.37,10.1444]
[1740734499531,3.82625905,131.41,131.37,12.1444]
[1740734501537,3.82625905,131.41,131.37,8.1444]
[1740734501830,3.82625905,131.41,131.37,10.1444]
[1740734502029,20.0,131.38,131.37,10.1444]
[1740734502331,20.0,131.38,131.37,8.1444]
[1740734503123,23.82625905,131.41,131.37,10.1444]
[1740734503318,23.82625905,131.41,131.37,8.1444]
[1740734503727,23.82625905,131.41,131.37,6.58]
[1740734503930,20.0,131.39,131.35,7.78]
[1740734504237,20.0,131.39,131.36,7.78]
[1740734504428,20.0,131.38,131.37,7.78]
[1740734505161,20.0,131.39,131.37,7.78]
[1740734505318,18.64964886,131.38,131.37,7.78]
[1740734505630,38.64964886,131.38,131.37,7.78]
[1740734505840,20.0,131.39,131.37,7.78]
[1740734506136,135.6,131.38,131.37,7.78]
[1740734506644,218.4,131.38,131.37,7.78]
[1740734508237,237.04964886,131.38,131.37,7.78]
[1740734509015,237.04964886,131.38,131.34,7.8943]
[1740734509230,20.0,131.35,131.34,0.063]
[1740734509518,20.0,131.35,131.34,7.843]
[1740734510143,20.0,131.38,131.34,7.843]
[1740734510319,18.64964886,131.4,131.34,7.843]
[1740734510729,20.0,131.37,131.34,7.843]
[1740734511040,3.82625905,131.41,131.37,3.80026157]
[1740734511339,3.82625905,131.41,131.37,11.84596157]
[1740734512336,23.82625905,131.41,131.37,11.84596157]
[1740734512669,3.82625905,131.41,131.37,7.7038]
[1740734512839,20.0,131.37,131.34,7.843]
[1740734514032,20.0,131.37,131.35,7.78]
[1740734514237,82.8,131.36,131.35,7.78]
[1740734514621,18.64964886,131.4,131.35,7.78]
[1740734514944,20.0,131.37,131.35,7.78]
[1740734515141,3.82625905,131.41,131.36,2.14216157]
[1740734515326,3.82625905,131.41,131.36,0.14216157]
[1740734515651,20.0,131.39,131.36,0.14216157]
[1740734515938,20.0,131.39,131.36,2.14216157]
[1740734516120,3.82625905,131.41,131.37,4.0]
[1740734516326,3.82625905,131.41,131.38,4.14216157]
[1740734516550,3.82625905,131.41,131.38,2.14216157]
[1740734516752,23.82625905,131.41,131.38,0.14216157]
[1740734517340,3.82625905,131.41,131.38,2.14216157]
[1740734517733,3.82625905,131.41,131.38,4.14216157]
[1740734517933,23.82625905,131.41,131.38,2.14216157]
[1740734518254,23.82625905,131.41,131.37,4.0]
[1740734519745,82.8,131.38,131.37,4.14216157]
[1740734519931,23.82625905,131.41,131.37,4.14216157]